[Event "FIDE WYCC Girls U18 2023"]
[Site "Montesilvano"]
[Date "2023.11.14"]
[Round "2.5"]
[White "Sipos, Stefania"]
[Black "Mungunzul, Bat-Erdene"]
[Result "0-1"]
[ECO "C70"]
[WhiteElo "1932"]
[BlackElo "2111"]
[Annotator "NA"]
[PlyCount "108"]
[EventDate "2023.11.13"]
[EventType "swiss"]
[EventCountry "ITA"]
[SourceTitle "playchess.com"]
[Source "ChessBase"]
[SourceQuality "1"]
[TimeControl "40/5400+30:1800+30"]

1. e4 {[%emt 0:00:03]} e5 {[%emt 0:00:13]} 2. Nf3 {[%emt 0:00:05]} Nc6 {[%emt 0:00:07]} 3. Bb5 {[%emt 0:00:11]} a6 {[%emt 0:00:12]} 4. Ba4 {[%emt 0:00:08]} b5 {[%emt 0:00:35]} 5. Bb3 {[%emt 0:00:06]} Bc5 {[%emt 0:00:12]} 6. O-O {[%emt 0:01:47]} Nf6 {[%emt 0:00:17]} 7. c3 {[%emt 0:00:24]} d6 {[%emt 0:00:23]} 8. d4 {[%emt 0:00:20]} Bb6 {[%emt 0:00:33]} 9. a4 {[%emt 0:00:20]} Rb8 {[%emt 0:04:00]} 10. Na3 {[%emt 0:00:53]} Bg4 {[%emt 0:14:41]} 11. axb5 {[%emt 0:01:09]} axb5 {[%emt 0:00:09]} 12. Nxb5 {[%emt 0:01:18]} O-O {[%emt 0:01:34]} 13. Bc2 {[%emt 0:01:16]} Bxf3 {[%emt 0:03:12]} 14. gxf3 {[%emt 0:00:33]} Nh5 {[%emt 0:11:09]} 15. f4 {[%emt 0:01:54]} Nxf4 {[%emt 0:06:57]} 16. Bxf4 {[%emt 0:00:13]} exf4 {[%emt 0:00:06]} 17. Na3 {[%emt 0:01:30]} Ne7 {[%emt 0:02:24]} 18. Nc4 {[%emt 0:02:47]} Ng6 {[%emt 0:03:47]} 19. Qg4 {[%emt 0:07:02]} d5 {[%emt 0:05:59]} 20. Ne5 {[%emt 0:10:33]} dxe4 {[%emt 0:05:17]} 21. Nc6 {[%emt 0:07:30]} Qd6 {[%emt 0:08:55]} 22. Nxb8 {[%emt 0:05:32]} f5 {[%emt 0:00:12]} 23. Qg5 {[%emt 0:08:57]} h6 {[%emt 0:02:18]} 24. Qh5 {[%emt 0:03:47]} f3 {[%emt 0:00:14]} 25. Kh1 {[%emt 0:08:27]} Nf4 {[%emt 0:00:32]} 26. Qh4 {[%emt 0:01:15]} Rxb8 {[%emt 0:02:15]} 27. Ra6 {[%emt 0:11:11]} c6 {[%emt 0:04:51]} 28. Rfa1 {[%emt 0:04:45]} Bd8 {[%emt 0:02:07]} 29. Qg3 {[%emt 0:02:23]} Rxb2 {[%emt 0:01:26]} 30. Ba4 {[%emt 0:04:49]} Bb6 {[%emt 0:01:50]} 31. Bxc6 {[%emt 0:03:30]} g5 {[%emt 0:01:55]} 32. Bb7 {[%emt 0:08:50]} Qc7 {[%emt 0:01:32]} 33. Ra8+ {[%emt 0:00:51]} Kg7 {[%emt 0:00:20]} 34. Bc8 {[%emt 0:00:58]} Kf6 {[%emt 0:01:26]} 35. h4 {[%emt 0:01:06]} Nd3 {[%emt 0:10:39]} 36. hxg5+ {[%emt 0:00:49]} hxg5 {[%emt 0:00:08]} 37. Qxc7 {[%emt 0:01:00]} Nxf2+ {[%emt 0:00:19]} 38. Kg1 {[%emt 0:00:15]} Nh3+ {[%emt 0:00:12]} 39. Kf1 {[%emt 0:00:27]} Bxc7 {[%emt 0:00:07]} 40. R8a6+ {[%emt 0:00:00]} Bb6 {[%emt 0:00:00]} 41. R6a2 {[%emt 0:07:12]} Rxa2 {[%emt 0:09:31]} 42. Rxa2 {[%emt 0:00:45]} g4 {[%emt 0:00:37]} 43. Ra6 {[%emt 0:06:17]} g3 {[%emt 0:00:11]} 44. Rxb6+ {[%emt 0:00:08]} Kg5 {[%emt 0:00:08]} 45. Rb2 {[%emt 0:01:09]} e3 {[%emt 0:00:10]} 46. Ba6 {[%emt 0:03:52]} Nf4 {[%emt 0:00:55]} 47. Bb5 {[%emt 0:09:15]} e2+ {[%emt 0:00:44]} 48. Bxe2 {[%emt 0:01:01]} g2+ {[%emt 0:00:46]} 49. Kf2 {[%emt 0:00:22]} Nh3+ {[%emt 0:00:15]} 50. Kxf3 {[%emt 0:00:27]} g1=Q {[%emt 0:00:07]} 51. Bc4 {[%emt 0:02:12]} Qd1+ {[%emt 0:00:38]} 52. Kg3 {[%emt 0:02:30]} f4+ {[%emt 0:00:31]} 53. Kxh3 {[%emt 0:00:59]} Qh1+ {[%emt 0:00:06]} 54. Rh2 {[%emt 0:00:12]} Qf3# {[%emt 0:00:04]} 0-1

[Event "FIDE WYCC Girls U18 2023"]
[Site "Montesilvano"]
[Date "2023.11.14"]
[Round "2.6"]
[White "Mihelic, Vesna"]
[Black "Gasimova, Samra"]
[Result "1-0"]
[ECO "C01"]
[WhiteElo "2102"]
[BlackElo "1860"]
[Annotator "NA"]
[PlyCount "63"]
[EventDate "2023.11.13"]
[EventType "swiss"]
[EventCountry "ITA"]
[SourceTitle "playchess.com"]
[Source "ChessBase"]
[SourceQuality "1"]
[TimeControl "40/5400+30:1800+30"]

1. e4 {[%emt 0:00:03]} e6 {[%emt 0:00:05]} 2. d4 {[%emt 0:00:05]} d5 {[%emt 0:00:03]} 3. exd5 {[%emt 0:00:07]} exd5 {[%emt 0:00:05]} 4. Nf3 {[%emt 0:00:07]} Bd6 {[%emt 0:00:09]} 5. Bd3 {[%emt 0:00:07]} Ne7 {[%emt 0:00:13]} 6. Nc3 {[%emt 0:00:24]} c6 {[%emt 0:01:48]} 7. Ne2 {[%emt 0:00:20]} Bf5 {[%emt 0:03:31]} 8. Bf4 {[%emt 0:02:06]} O-O {[%emt 0:03:10]} 9. O-O {[%emt 0:00:51]} Qc7 {[%emt 0:05:50]} 10. Bxd6 {[%emt 0:01:05]} Qxd6 {[%emt 0:00:06]} 11. Ng3 {[%emt 0:00:48]} Bxd3 {[%emt 0:01:56]} 12. Qxd3 {[%emt 0:00:35]} Nd7 {[%emt 0:03:28]} 13. Rae1 {[%emt 0:03:37]} Ng6 {[%emt 0:08:02]} 14. Re3 {[%emt 0:16:47]} Rfe8 {[%emt 0:11:30]} 15. Rfe1 {[%emt 0:02:38]} Rxe3 {[%emt 0:09:28]} 16. Qxe3 {[%emt 0:01:26]} Nf6 {[%emt 0:07:26]} 17. h4 {[%emt 0:09:13]} Re8 {[%emt 0:07:07]} 18. Qxe8+ {[%emt 0:02:41]} Nxe8 {[%emt 0:02:59]} 19. Rxe8+ {[%emt 0:00:06]} Qf8 {[%emt 0:12:08]} 20. Rxf8+ {[%emt 0:00:07]} Kxf8 {[%emt 0:00:04]} 21. Nf5 {[%emt 0:00:31]} b6 {[%emt 0:02:19]} 22. Ne5 {[%emt 0:01:07]} Nf4 {[%emt 0:00:54]} 23. Nxc6 {[%emt 0:00:26]} a6 {[%emt 0:01:23]} 24. g3 {[%emt 0:00:41]} Ne6 {[%emt 0:00:06]} 25. Nd6 {[%emt 0:00:13]} g5 {[%emt 0:00:42]} 26. hxg5 {[%emt 0:00:35]} Nxg5 {[%emt 0:00:31]} 27. Kg2 {[%emt 0:00:06]} h5 {[%emt 0:00:18]} 28. c3 {[%emt 0:00:35]} f5 {[%emt 0:01:43]} 29. Nxf5 {[%emt 0:00:12]} Kf7 {[%emt 0:00:23]} 30. Nb4 {[%emt 0:00:16]} a5 {[%emt 0:00:54]} 31. Nxd5 {[%emt 0:00:14]} Ke6 {[%emt 0:00:15]} 32. Nfe3 {[%emt 0:00:07]} 1-0

[Event "FIDE WYCC Girls U18 2023"]
[Site "Montesilvano"]
[Date "2023.11.14"]
[Round "2.7"]
[White "Naymanova, Patricie"]
[Black "Shohradova, Lala"]
[Result "0-1"]
[ECO "E38"]
[WhiteElo "2083"]
[BlackElo "1846"]
[Annotator "NA"]
[PlyCount "66"]
[EventDate "2023.11.13"]
[EventType "swiss"]
[EventCountry "ITA"]
[SourceTitle "playchess.com"]
[Source "ChessBase"]
[SourceQuality "1"]
[TimeControl "40/5400+30:1800+30"]

1. d4 {[%emt 0:00:04]} Nf6 {[%emt 0:00:20]} 2. c4 {[%emt 0:00:05]} e6 {[%emt 0:00:20]} 3. Nc3 {[%emt 0:00:09]} Bb4 {[%emt 0:00:42]} 4. Qc2 {[%emt 0:00:38]} c5 {[%emt 0:00:29]} 5. dxc5 {[%emt 0:01:44]} Na6 {[%emt 0:01:35]} 6. f3 {[%emt 0:08:00]} Bxc5 {[%emt 0:12:02]} 7. a3 {[%emt 0:11:23]} d5 {[%emt 0:15:55]} 8. Nh3 {[%emt 0:26:51]} Bd7 {[%emt 0:20:27]} 9. Bg5 {[%emt 0:05:56]} Be7 {[%emt 0:06:01]} 10. e3 {[%emt 0:05:32]} Rc8 {[%emt 0:00:35]} 11. Rd1 {[%emt 0:07:42]} dxc4 {[%emt 0:03:48]} 12. Rd4 {[%emt 0:02:32]} e5 {[%emt 0:06:55]} 13. Rxc4 {[%emt 0:01:14]} Nc7 {[%emt 0:00:18]} 14. Bxf6 {[%emt 0:10:42]} gxf6 {[%emt 0:01:30]} 15. Ne4 {[%emt 0:08:54]} b5 {[%emt 0:01:54]} 16. Rc3 {[%emt 0:00:31]} f5 {[%emt 0:01:35]} 17. Ng3 {[%emt 0:03:27]} b4 {[%emt 0:02:05]} 18. Rd3 {[%emt 0:00:25]} Ne6 {[%emt 0:01:08]} 19. Qd2 {[%emt 0:02:11]} Nc5 {[%emt 0:00:29]} 20. Rd5 {[%emt 0:00:16]} bxa3 {[%emt 0:01:04]} 21. Bb5 {[%emt 0:00:55]} Bxb5 {[%emt 0:10:34]} 22. Rxd8+ {[%emt 0:00:05]} Bxd8 {[%emt 0:07:54]} 23. bxa3 {[%emt 0:01:29]} Nd3+ {[%emt 0:00:15]} 24. Ke2 {[%emt 0:01:01]} Rg8 {[%emt 0:02:32]} 25. Rb1 {[%emt 0:00:21]} Ba6 {[%emt 0:00:58]} 26. Kf1 {[%emt 0:00:34]} Rg6 {[%emt 0:00:45]} 27. Nxf5 {[%emt 0:00:39]} Nf4+ {[%emt 0:00:34]} 28. Kg1 {[%emt 0:00:08]} Nxh3+ {[%emt 0:00:16]} 29. Kh1 {[%emt 0:00:01]} Bd3 {[%emt 0:00:29]} 30. Rc1 {[%emt 0:01:18]} Rxc1+ {[%emt 0:00:45]} 31. Qxc1 {[%emt 0:00:01]} Bxf5 {[%emt 0:00:22]} 32. g4 {[%emt 0:00:46]} Rxg4 {[%emt 0:01:05]} 33. Qc6+ {[%emt 0:00:39]} Bd7 {[%emt 0:00:11]} 0-1

[Event "FIDE WYCC Girls U18 2023"]
[Site "Montesilvano"]
[Date "2023.11.14"]
[Round "2.8"]
[White "Petricenco, Ana"]
[Black "Liu, Kelsey"]
[Result "1-0"]
[ECO "B12"]
[WhiteElo "1902"]
[BlackElo "2051"]
[Annotator "NA"]
[PlyCount "53"]
[EventDate "2023.11.13"]
[EventType "swiss"]
[EventCountry "ITA"]
[SourceTitle "playchess.com"]
[Source "ChessBase"]
[SourceQuality "1"]
[TimeControl "40/5400+30:1800+30"]

1. e4 {[%emt 0:00:04]} c6 {[%emt 0:00:08]} 2. d4 {[%emt 0:00:07]} d5 {[%emt 0:00:08]} 3. e5 {[%emt 0:00:14]} Bf5 {[%emt 0:00:08]} 4. Nf3 {[%emt 0:00:13]} e6 {[%emt 0:00:20]} 5. Be2 {[%emt 0:00:12]} c5 {[%emt 0:00:37]} 6. c3 {[%emt 0:01:44]} Nc6 {[%emt 0:00:48]} 7. O-O {[%emt 0:08:41]} Nge7 {[%emt 0:01:02]} 8. a3 {[%emt 0:01:03]} Bg4 {[%emt 0:02:52]} 9. Nbd2 {[%emt 0:06:39]} Nf5 {[%emt 0:03:49]} 10. h3 {[%emt 0:04:49]} Bxf3 {[%emt 0:00:39]} 11. Nxf3 {[%emt 0:00:05]} cxd4 {[%emt 0:01:08]} 12. cxd4 {[%emt 0:00:56]} Qb6 {[%emt 0:01:18]} 13. Kh1 {[%emt 0:06:50]} Ncxd4 {[%emt 0:04:02]} 14. Nxd4 {[%emt 0:00:12]} Qxd4 {[%emt 0:00:57]} 15. Bb5+ {[%emt 0:00:12]} Kd8 {[%emt 0:04:15]} 16. Qe2 {[%emt 0:03:54]} f6 {[%emt 0:11:24]} 17. exf6 {[%emt 0:04:48]} Qxf6 {[%emt 0:00:18]} 18. Bg5 {[%emt 0:03:28]} Qxg5 {[%emt 0:00:08]} 19. Qxe6 {[%emt 0:00:05]} Qe7 {[%emt 0:05:30]} 20. Qxf5 {[%emt 0:00:42]} a6 {[%emt 0:04:52]} 21. Rfe1 {[%emt 0:00:41]} axb5 {[%emt 0:06:24]} 22. Rxe7 {[%emt 0:00:09]} Bxe7 {[%emt 0:00:05]} 23. Qxd5+ {[%emt 0:00:04]} Ke8 {[%emt 0:00:30]} 24. Qxb7 {[%emt 0:00:42]} Kf7 {[%emt 0:00:59]} 25. Qd5+ {[%emt 0:00:08]} Kf6 {[%emt 0:03:54]} 26. Re1 {[%emt 0:00:21]} Rae8 {[%emt 0:02:19]} 27. Qe6+ {[%emt 0:00:07]} 1-0

[Event "FIDE WYCC Girls U18 2023"]
[Site "Montesilvano"]
[Date "2023.11.14"]
[Round "2.9"]
[White "Sevcikova, Lucia"]
[Black "Hoanca, Alexia-Ioana"]
[Result "1-0"]
[ECO "D31"]
[WhiteElo "2047"]
[BlackElo "1830"]
[Annotator "NA"]
[PlyCount "71"]
[EventDate "2023.11.13"]
[EventType "swiss"]
[EventCountry "ITA"]
[SourceTitle "playchess.com"]
[Source "ChessBase"]
[SourceQuality "1"]
[TimeControl "40/5400+30:1800+30"]

1. d4 {[%emt 0:00:04]} d5 {[%emt 0:00:14]} 2. c4 {[%emt 0:00:05]} e6 {[%emt 0:00:04]} 3. Nc3 {[%emt 0:00:05]} h6 {[%emt 0:00:05]} 4. Nf3 {[%emt 0:00:04]} Nf6 {[%emt 0:00:40]} 5. Bf4 {[%emt 0:00:06]} Bd6 {[%emt 0:00:47]} 6. Bxd6 {[%emt 0:00:05]} Qxd6 {[%emt 0:00:08]} 7. c5 {[%emt 0:00:03]} Qe7 {[%emt 0:03:46]} 8. e3 {[%emt 0:00:14]} O-O {[%emt 0:08:56]} 9. Be2 {[%emt 0:01:37]} Nbd7 {[%emt 0:05:54]} 10. O-O {[%emt 0:07:27]} c6 {[%emt 0:02:20]} 11. b4 {[%emt 0:05:26]} e5 {[%emt 0:06:10]} 12. b5 {[%emt 0:08:05]} exd4 {[%emt 0:12:00]} 13. exd4 {[%emt 0:00:23]} Ne4 {[%emt 0:00:11]} 14. Rc1 {[%emt 0:09:52]} Ndf6 {[%emt 0:16:56]} 15. bxc6 {[%emt 0:06:30]} bxc6 {[%emt 0:00:53]} 16. Ne5 {[%emt 0:02:56]} Qc7 {[%emt 0:04:28]} 17. Nxe4 {[%emt 0:03:49]} Nxe4 {[%emt 0:06:34]} 18. Qa4 {[%emt 0:04:22]} Bd7 {[%emt 0:00:36]} 19. Bd3 {[%emt 0:04:28]} Nf6 {[%emt 0:05:38]} 20. Rb1 {[%emt 0:06:46]} Rab8 {[%emt 0:05:09]} 21. Rb3 {[%emt 0:06:19]} Ne4 {[%emt 0:06:00]} 22. Bxe4 {[%emt 0:03:27]} dxe4 {[%emt 0:00:06]} 23. Rfb1 {[%emt 0:03:18]} Rxb3 {[%emt 0:04:13]} 24. Qxb3 {[%emt 0:04:43]} Be6 {[%emt 0:01:36]} 25. Qb7 {[%emt 0:02:18]} Qa5 {[%emt 0:00:54]} 26. Nxc6 {[%emt 0:01:03]} Qxa2 {[%emt 0:00:28]} 27. d5 {[%emt 0:01:36]} Bc8 {[%emt 0:07:00]} 28. Ne7+ {[%emt 0:02:49]} Kh7 {[%emt 0:00:12]} 29. Nxc8 {[%emt 0:00:55]} Rxc8 {[%emt 0:00:06]} 30. c6 {[%emt 0:01:24]} Rc7 {[%emt 0:01:59]} 31. Qb3 {[%emt 0:01:34]} Qxb3 {[%emt 0:00:15]} 32. Rxb3 {[%emt 0:00:04]} Kg6 {[%emt 0:00:11]} 33. Rc3 {[%emt 0:03:26]} Kf6 {[%emt 0:01:47]} 34. d6 {[%emt 0:00:04]} Rc8 {[%emt 0:00:03]} 35. d7 {[%emt 0:00:09]} Rb8 {[%emt 0:00:07]} 36. g3 {[%emt 0:00:13]} 1-0

[Event "FIDE WYCC Girls U18 2023"]
[Site "Montesilvano"]
[Date "2023.11.14"]
[Round "2.10"]
[White "Nguyen, Thien Ngan"]
[Black "Striskova, Lucia"]
[Result "1/2-1/2"]
[ECO "B95"]
[WhiteElo "1891"]
[BlackElo "2039"]
[Annotator "NA"]
[PlyCount "80"]
[EventDate "2023.11.13"]
[EventType "swiss"]
[EventCountry "ITA"]
[SourceTitle "playchess.com"]
[Source "ChessBase"]
[SourceQuality "1"]
[TimeControl "40/5400+30:1800+30"]

1. e4 {[%emt 0:00:04]} c5 {[%emt 0:00:11]} 2. Nf3 {[%emt 0:00:08]} d6 {[%emt 0:00:14]} 3. d4 {[%emt 0:00:07]} cxd4 {[%emt 0:00:10]} 4. Nxd4 {[%emt 0:00:07]} Nf6 {[%emt 0:00:24]} 5. Nc3 {[%emt 0:00:08]} a6 {[%emt 0:00:19]} 6. Bg5 {[%emt 0:00:09]} e6 {[%emt 0:00:14]} 7. Qd2 {[%emt 0:00:18]} Be7 {[%emt 0:01:47]} 8. O-O-O {[%emt 0:00:18]} Nbd7 {[%emt 0:06:08]} 9. Bd3 {[%emt 0:06:22]} b5 {[%emt 0:03:51]} 10. a3 {[%emt 0:07:54]} Bb7 {[%emt 0:04:29]} 11. f4 {[%emt 0:01:44]} Qb6 {[%emt 0:09:19]} 12. Nf3 {[%emt 0:14:56]} Rc8 {[%emt 0:08:16]} 13. Rhe1 {[%emt 0:05:51]} Qc5 {[%emt 0:07:48]} 14. e5 {[%emt 0:24:03]} Bxf3 {[%emt 0:03:02]} 15. gxf3 {[%emt 0:04:24]} dxe5 {[%emt 0:04:34]} 16. Bxf6 {[%emt 0:16:47]} Nxf6 {[%emt 0:03:34]} 17. fxe5 {[%emt 0:01:56]} Nd5 {[%emt 0:01:21]} 18. Nxd5 {[%emt 0:00:40]} Qxd5 {[%emt 0:02:49]} 19. Kb1 {[%emt 0:00:47]} O-O {[%emt 0:05:27]} 20. Qg2 {[%emt 0:03:29]} Qc5 {[%emt 0:02:06]} 21. Re4 {[%emt 0:02:50]} Rfd8 {[%emt 0:03:26]} 22. Rg1 {[%emt 0:03:26]} g6 {[%emt 0:01:29]} 23. h4 {[%emt 0:01:45]} Rd4 {[%emt 0:07:21]} 24. h5 {[%emt 0:00:57]} Rxe4 {[%emt 0:00:08]} 25. hxg6 {[%emt 0:01:32]} hxg6 {[%emt 0:02:09]} 26. Bxe4 {[%emt 0:00:07]} Qxe5 {[%emt 0:00:08]} 27. Bxg6 {[%emt 0:00:50]} Bf6 {[%emt 0:00:11]} 28. Be4+ {[%emt 0:01:08]} Kf8 {[%emt 0:00:08]} 29. c3 {[%emt 0:00:13]} Rd8 {[%emt 0:03:04]} 30. Qf2 {[%emt 0:01:10]} Qc7 {[%emt 0:04:24]} 31. f4 {[%emt 0:00:53]} a5 {[%emt 0:01:50]} 32. f5 {[%emt 0:00:29]} e5 {[%emt 0:00:34]} 33. Qe2 {[%emt 0:00:43]} Qc5 {[%emt 0:03:35]} 34. Rd1 {[%emt 0:00:24]} Rxd1+ {[%emt 0:00:37]} 35. Qxd1 {[%emt 0:00:01]} b4 {[%emt 0:00:28]} 36. cxb4 {[%emt 0:01:04]} axb4 {[%emt 0:00:08]} 37. a4 {[%emt 0:00:28]} Ke7 {[%emt 0:06:45]} 38. Qd3 {[%emt 0:00:32]} Qd4 {[%emt 0:03:12]} 39. a5 {[%emt 0:00:34]} Qxd3+ {[%emt 0:02:13]} 40. Bxd3 {[%emt 0:00:00]} Kd6 {[%emt 0:00:00]} 1/2-1/2

[Event "FIDE WYCC Girls U18 2023"]
[Site "Montesilvano"]
[Date "2023.11.14"]
[Round "2.11"]
[White "Luong, Hoang Tu Linh"]
[Black "Trifoi, Mihaela-Ioana"]
[Result "1-0"]
[ECO "D53"]
[WhiteElo "1887"]
[BlackElo "2021"]
[Annotator "NA"]
[PlyCount "61"]
[EventDate "2023.11.13"]
[EventType "swiss"]
[EventCountry "ITA"]
[SourceTitle "playchess.com"]
[Source "ChessBase"]
[SourceQuality "1"]
[TimeControl "40/5400+30:1800+30"]

1. d4 {[%emt 0:00:03]} d5 {[%emt 0:00:07]} 2. c4 {[%emt 0:00:15]} e6 {[%emt 0:00:06]} 3. Nc3 {[%emt 0:00:07]} Nf6 {[%emt 0:00:08]} 4. Bg5 {[%emt 0:00:19]} Be7 {[%emt 0:00:10]} 5. cxd5 {[%emt 0:00:19]} exd5 {[%emt 0:00:08]} 6. Qc2 {[%emt 0:00:19]} O-O {[%emt 0:00:32]} 7. e3 {[%emt 0:00:43]} Nbd7 {[%emt 0:00:18]} 8. Bd3 {[%emt 0:01:54]} Re8 {[%emt 0:00:46]} 9. Nf3 {[%emt 0:00:40]} Nf8 {[%emt 0:00:09]} 10. h3 {[%emt 0:01:28]} c6 {[%emt 0:00:57]} 11. O-O-O {[%emt 0:02:25]} Be6 {[%emt 0:00:09]} 12. Kb1 {[%emt 0:01:11]} Rc8 {[%emt 0:00:07]} 13. g4 {[%emt 0:01:27]} a6 {[%emt 0:00:09]} 14. Na4 {[%emt 0:02:45]} Ne4 {[%emt 0:12:34]} 15. Bxe7 {[%emt 0:02:58]} Qxe7 {[%emt 0:00:18]} 16. Nc5 {[%emt 0:06:21]} a5 {[%emt 0:04:38]} 17. Nxe4 {[%emt 0:16:20]} dxe4 {[%emt 0:00:10]} 18. Bxe4 {[%emt 0:00:11]} Bxa2+ {[%emt 0:00:33]} 19. Kxa2 {[%emt 0:00:13]} Qxe4 {[%emt 0:00:08]} 20. Qxe4 {[%emt 0:00:43]} Rxe4 {[%emt 0:00:07]} 21. Ne5 {[%emt 0:03:04]} c5 {[%emt 0:03:28]} 22. Nc4 {[%emt 0:03:13]} cxd4 {[%emt 0:00:33]} 23. Nd6 {[%emt 0:00:35]} Rce8 {[%emt 0:01:02]} 24. Nxe4 {[%emt 0:00:57]} Rxe4 {[%emt 0:00:06]} 25. Rxd4 {[%emt 0:00:10]} Re7 {[%emt 0:03:18]} 26. Rc1 {[%emt 0:03:57]} g6 {[%emt 0:01:46]} 27. Rd5 {[%emt 0:01:54]} b6 {[%emt 0:00:43]} 28. Rc8 {[%emt 0:01:04]} Kg7 {[%emt 0:00:15]} 29. Rb8 {[%emt 0:01:17]} Rc7 {[%emt 0:00:34]} 30. Rxb6 {[%emt 0:01:46]} Rc2 {[%emt 0:00:18]} 31. f4 {[%emt 0:01:50]} 1-0

[Event "FIDE WYCC Girls U18 2023"]
[Site "Montesilvano"]
[Date "2023.11.14"]
[Round "2.12"]
[White "Lindstad, Livia"]
[Black "Dakic, Marta"]
[Result "1-0"]
[ECO "C50"]
[WhiteElo "1848"]
[BlackElo "2013"]
[Annotator "NA"]
[PlyCount "65"]
[EventDate "2023.11.13"]
[EventType "swiss"]
[EventCountry "ITA"]
[SourceTitle "playchess.com"]
[Source "ChessBase"]
[SourceQuality "1"]
[TimeControl "40/5400+30:1800+30"]

1. e4 {[%emt 0:00:05]} e5 {[%emt 0:00:24]} 2. Nf3 {[%emt 0:00:15]} Nc6 {[%emt 0:00:22]} 3. Bc4 {[%emt 0:00:24]} Nf6 {[%emt 0:00:21]} 4. d3 {[%emt 0:00:19]} Bc5 {[%emt 0:00:18]} 5. c3 {[%emt 0:00:34]} d6 {[%emt 0:00:19]} 6. Bb3 {[%emt 0:00:56]} O-O {[%emt 0:01:11]} 7. h3 {[%emt 0:01:20]} a5 {[%emt 0:00:54]} 8. Nbd2 {[%emt 0:01:44]} Be6 {[%emt 0:11:46]} 9. Bc2 {[%emt 0:00:16]} h6 {[%emt 0:03:20]} 10. Nf1 {[%emt 0:00:59]} d5 {[%emt 0:05:09]} 11. Qe2 {[%emt 0:04:40]} Qe7 {[%emt 0:05:30]} 12. Ng3 {[%emt 0:01:54]} dxe4 {[%emt 0:01:23]} 13. dxe4 {[%emt 0:00:34]} Rfd8 {[%emt 0:02:03]} 14. O-O {[%emt 0:06:29]} a4 {[%emt 0:15:34]} 15. Nh4 {[%emt 0:06:57]} Na5 {[%emt 0:06:21]} 16. Ngf5 {[%emt 0:06:29]} Qf8 {[%emt 0:01:55]} 17. Qf3 {[%emt 0:02:31]} Bc4 {[%emt 0:00:50]} 18. Re1 {[%emt 0:02:51]} Ra6 {[%emt 0:05:27]} 19. Qg3 {[%emt 0:04:42]} g5 {[%emt 0:12:13]} 20. Nf3 {[%emt 0:21:04]} Nh5 {[%emt 0:06:08]} 21. Qxe5 {[%emt 0:03:23]} Re6 {[%emt 0:02:17]} 22. Nxh6+ {[%emt 0:04:15]} Rxh6 {[%emt 0:06:53]} 23. Qxg5+ {[%emt 0:00:59]} Rg6 {[%emt 0:00:31]} 24. Qxh5 {[%emt 0:00:53]} Qg7 {[%emt 0:01:26]} 25. Qxc5 {[%emt 0:05:03]} Rxg2+ {[%emt 0:00:13]} 26. Kh1 {[%emt 0:00:05]} Be6 {[%emt 0:01:02]} 27. Qe5 {[%emt 0:07:42]} Qxe5 {[%emt 0:02:25]} 28. Nxe5 {[%emt 0:00:11]} Rxf2 {[%emt 0:00:03]} 29. Bxa4 {[%emt 0:02:39]} Bxh3 {[%emt 0:00:50]} 30. Rg1+ {[%emt 0:01:49]} Kh7 {[%emt 0:01:49]} 31. Be3 {[%emt 0:02:44]} Rxb2 {[%emt 0:01:34]} 32. Nxf7 {[%emt 0:00:12]} Rd3 {[%emt 0:00:17]} 33. Bd4 {[%emt 0:01:04]} 1-0

[Event "FIDE WYCC Girls U18 2023"]
[Site "Montesilvano"]
[Date "2023.11.14"]
[Round "2.13"]
[White "Sosovickova, Jana"]
[Black "Largo, Franchesca"]
[Result "1-0"]
[ECO "A21"]
[WhiteElo "2013"]
[BlackElo "1658"]
[Annotator "NA"]
[PlyCount "83"]
[EventDate "2023.11.13"]
[EventType "swiss"]
[EventCountry "ITA"]
[SourceTitle "playchess.com"]
[Source "ChessBase"]
[SourceQuality "1"]
[TimeControl "40/5400+30:1800+30"]

1. c4 {[%emt 0:00:03]} e5 {[%emt 0:01:51]} 2. Nc3 {[%emt 0:00:05]} Bb4 {[%emt 0:00:10]} 3. Nd5 {[%emt 0:00:06]} Bc5 {[%emt 0:00:08]} 4. e3 {[%emt 0:00:08]} c6 {[%emt 0:04:14]} 5. Nc3 {[%emt 0:06:57]} Nf6 {[%emt 0:01:39]} 6. Nf3 {[%emt 0:02:25]} e4 {[%emt 0:06:18]} 7. d4 {[%emt 0:10:37]} Bb4 {[%emt 0:05:32]} 8. Nd2 {[%emt 0:00:38]} d5 {[%emt 0:04:44]} 9. cxd5 {[%emt 0:07:20]} cxd5 {[%emt 0:00:09]} 10. Qa4+ {[%emt 0:00:11]} Nc6 {[%emt 0:00:08]} 11. Bb5 {[%emt 0:00:51]} Qb6 {[%emt 0:02:50]} 12. Qxb4 {[%emt 0:02:14]} a6 {[%emt 0:06:00]} 13. Bxc6+ {[%emt 0:00:09]} Qxc6 {[%emt 0:00:08]} 14. b3 {[%emt 0:05:13]} b5 {[%emt 0:08:40]} 15. Ba3 {[%emt 0:00:33]} Qb7 {[%emt 0:00:13]} 16. Rc1 {[%emt 0:12:40]} Rb8 {[%emt 0:05:07]} 17. Ne2 {[%emt 0:01:58]} Bf5 {[%emt 0:00:52]} 18. Qd6 {[%emt 0:01:02]} b4 {[%emt 0:01:17]} 19. Rc7 {[%emt 0:00:23]} Qxc7 {[%emt 0:00:53]} 20. Qxc7 {[%emt 0:00:03]} O-O {[%emt 0:00:13]} 21. Bc1 {[%emt 0:03:53]} Bd7 {[%emt 0:01:55]} 22. a4 {[%emt 0:05:17]} Rfc8 {[%emt 0:07:30]} 23. Qf4 {[%emt 0:01:50]} Rb6 {[%emt 0:00:31]} 24. h3 {[%emt 0:01:46]} Rbc6 {[%emt 0:13:16]} 25. O-O {[%emt 0:00:08]} h6 {[%emt 0:01:03]} 26. f3 {[%emt 0:01:56]} exf3 {[%emt 0:14:03]} 27. Qxf3 {[%emt 0:01:51]} Be6 {[%emt 0:03:14]} 28. Re1 {[%emt 0:09:08]} a5 {[%emt 0:01:41]} 29. Nf1 {[%emt 0:01:06]} Ne4 {[%emt 0:00:15]} 30. Nfg3 {[%emt 0:05:40]} Nxg3 {[%emt 0:04:19]} 31. Qxg3 {[%emt 0:00:03]} Bf5 {[%emt 0:00:08]} 32. Bd2 {[%emt 0:11:19]} Rc2 {[%emt 0:00:26]} 33. Rd1 {[%emt 0:00:58]} Rb2 {[%emt 0:03:57]} 34. e4 {[%emt 0:00:24]} Bxe4 {[%emt 0:00:08]} 35. Bxh6 {[%emt 0:00:05]} Bg6 {[%emt 0:00:05]} 36. Nf4 {[%emt 0:05:06]} Rc6 {[%emt 0:01:27]} 37. Nxd5 {[%emt 0:01:21]} Re6 {[%emt 0:00:20]} 38. Nf4 {[%emt 0:01:00]} Ra6 {[%emt 0:00:32]} 39. Nxg6 {[%emt 0:00:09]} Rxg6 {[%emt 0:00:09]} 40. Qb8+ {[%emt 0:00:00]} Kh7 {[%emt 0:00:00]} 41. Bd2 {[%emt 0:00:20]} Rxb3 {[%emt 0:00:17]} 42. Bf4 {[%emt 0:03:56]} 1-0